bitfinex-derivatives/quotes_ETHF0:USTF0_20241023
["timestamp","ask_amount","ask_price","bid_price","bid_amount"]
[1729712478666,4.71591635,2508.0,2507.9,0.39914]
[1729712479264,4.31675635,2508.0,2507.9,0.39914]
[1729712480073,3.60687,2508.5,2508.4,0.39907]
[1729712480471,8.01340865,2508.5,2508.4,0.39907]
[1729712481171,0.39909,2508.4,2508.3,0.39908]
[1729712481370,3.51909,2508.4,2508.3,0.39908]
[1729712481568,7.95943409,2508.4,2508.3,0.39908]
[1729712482078,0.39911,2508.3,2508.2,0.39909]
[1729712483478,7.95943409,2508.4,2508.3,0.39909]
[1729712484677,4.44034409,2508.4,2508.3,4.38549]
[1729712484870,1.5662,2509.0,2508.9,0.39899]
[1729712485265,0.39903,2508.8,2508.7,0.39902]
[1729712485675,4.83860919,2508.8,2508.7,0.39902]
[1729712485873,0.39904,2508.7,2508.6,0.39904]
[1729712486270,4.97802452,2508.7,2508.6,0.39904]
[1729712486771,4.97802452,2508.7,2508.2,3.2078]
[1729712486772,7.69898452,2508.7,2508.2,3.2078]
[1729712486972,0.6373,2508.6,2508.5,0.39906]
[1729712487274,5.2486563,2508.6,2508.5,0.39906]
[1729712487977,4.6113563,2508.6,2508.5,0.39906]
[1729712491488,5.0103963,2508.6,2508.5,0.39906]
[1729712491779,4.6113563,2508.6,2508.5,0.39906]
[1729712493384,7.7313563,2508.6,2508.0,1.61957423]
[1729712493686,0.39915,2508.0,2507.9,0.39915]
[1729712493889,0.39919,2507.7,2507.6,25.0]
[1729712494074,0.39919,2507.7,2507.3,5.36971134]
[1729712494075,0.39921,2507.6,2507.5,0.39922]
[1729712494276,0.39923,2507.5,2507.4,0.39923]
[1729712494487,4.30440171,2507.6,2507.5,0.39922]
[1729712494776,4.70359171,2507.7,2507.6,0.39919]
[1729712494981,4.70359171,2507.7,2507.4,25.0]
[1729712494982,4.30440171,2507.7,2507.4,25.0]
[1729712495179,0.39919,2507.7,2507.6,0.39919]
[1729712495380,0.3992,2507.6,2507.5,0.39921]
[1729712495579,4.47724701,2507.7,2507.4,25.0]
[1729712495781,4.47724701,2507.6,2507.5,0.3992]
[1729712495980,0.39919,2507.7,2507.4,25.0]
[1729712496280,3.8227,2507.9,2507.8,0.39917]
[1729712496477,0.617,2508.2,2508.1,0.39912]
[1729712496779,5.85031556,2508.4,2508.3,0.39909]
[1729712497178,0.62,2508.4,2508.3,4.38549]
[1729712497491,0.6287,2508.7,2508.6,0.39904]
[1729712497782,3.51901,2508.8,2508.7,0.39903]
[1729712498081,7.59974197,2508.8,2508.7,0.39903]
[1729712498282,4.47974197,2508.8,2508.7,0.39903]
[1729712498585,4.47974197,2508.9,2508.5,1.252]
[1729712498785,4.47974197,2508.9,2508.8,0.39901]
[1729712498981,1.64769,2509.0,2508.9,0.39899]
[1729712499287,0.399,2508.9,2508.8,0.399]
[1729712499584,0.399,2508.9,2508.6,0.39904]
[1729712499585,4.67220644,2508.9,2508.6,0.39904]
[1729712499784,4.67220644,2508.9,2508.8,0.39901]
[1729712500286,4.67220644,2508.9,2508.8,25.39901]
[1729712500678,4.67220644,2508.9,2508.8,25.0]
[1729712500883,4.67220644,2508.9,2508.8,25.39901]
[1729712501689,4.67220644,2508.9,2508.8,25.0]
[1729712501986,0.39902,2508.8,2508.7,0.39902]
[1729712502390,4.67370969,2508.8,2508.7,25.39902]
[1729712502686,0.39907,2508.5,2508.4,0.39907]
[1729712503075,4.27468969,2508.5,2508.1,25.0]
[1729712503279,1.65268,2508.4,2508.3,0.39909]
[1729712503687,5.70429974,2508.4,2508.3,0.39909]
[1729712504086,6.10336974,2508.4,2508.3,0.39909]
[1729712504379,5.70429974,2508.4,2508.3,0.39909]
[1729712505175,4.45069974,2508.4,2508.3,0.39909]
[1729712505379,0.39903,2508.7,2508.3,0.39909]
[1729712505380,3.51902,2508.8,2508.3,4.38549]
[1729712505686,1.2038,2508.9,2508.2,0.6525]
[1729712505687,3.12,2508.5,2508.2,0.6525]
[1729712505887,3.51906,2508.5,2508.4,0.39907]
[1729712506082,4.12636,2508.5,2508.4,0.39907]
[1729712506277,3.7273,2508.5,2508.4,0.39907]
[1729712506483,4.12636,2508.5,2508.4,0.39907]
[1729712506981,7.9477791,2508.5,2508.4,0.39907]
[1729712507780,4.8277791,2508.5,2508.4,0.39907]
[1729712509285,4.2204791,2508.5,2508.4,3.60687]
[1729712510680,2.5441791,2508.5,2508.4,7.59327]
[1729712510886,0.4,2509.4,2509.3,0.39893]
[1729712511389,0.4,2509.4,2509.3,25.39893]
[1729712511591,0.79892,2509.4,2509.3,25.39893]
[1729712511893,5.96565428,2509.4,2509.3,25.0]
[1729712512589,5.96565428,2509.4,2509.3,25.39893]
[1729712512983,5.96565428,2509.4,2509.3,25.0]
[1729712513595,5.56673428,2509.4,2508.9,1.689]
[1729712513894,0.99674,2509.3,2509.2,0.39895]
[1729712514092,3.7178,2509.3,2508.8,3.2078]
[1729712514295,3.7178,2509.3,2508.5,0.99765]
[1729712514296,3.12,2509.0,2508.5,0.99765]
[1729712514498,3.51899,2509.0,2508.8,0.399]
[1729712514687,5.35898336,2508.9,2508.8,0.399]
[1729712514888,4.95999336,2508.9,2508.8,0.399]
[1729712515088,4.95999336,2508.9,2508.5,0.99765]
[1729712515089,4.95999336,2508.9,2508.5,24.0]
[1729712515291,4.95999336,2508.9,2508.8,0.39901]
[1729712516089,5.35898336,2508.9,2508.8,0.39901]
[1729712516488,4.95999336,2508.9,2508.8,0.39901]
[1729712516883,5.35898336,2508.9,2508.8,0.39901]
[1729712517296,4.95999336,2508.9,2508.8,0.39901]
[1729712517586,5.35898336,2508.9,2508.8,0.39901]
[1729712517992,4.95999336,2508.9,2508.4,4.20548]
[1729712518198,5.35900336,2508.9,2508.8,0.39901]
[1729712518389,5.35898336,2508.9,2508.8,0.39901]
[1729712518589,4.95999336,2508.9,2508.8,0.39901]
[1729712518789,5.35898336,2508.9,2508.8,0.39901]
[1729712519189,5.35898336,2508.9,2508.7,0.39902]
[1729712519383,5.35898336,2508.9,2508.4,27.2078]
[1729712519586,4.95999336,2508.9,2508.8,0.39901]
[1729712520792,5.35898336,2508.9,2508.8,0.39901]
[1729712521392,4.95999336,2508.9,2508.8,0.39901]
[1729712521693,5.35898336,2508.9,2508.8,0.39901]
[1729712524788,4.95999336,2508.9,2508.8,0.39901]
[1729712525996,5.35898336,2508.9,2508.8,0.39901]
[1729712526695,5.35899336,2508.9,2508.8,0.39901]
[1729712527807,0.39903,2508.8,2508.7,0.39902]
[1729712528199,5.01840104,2508.8,2508.7,0.39902]
[1729712528497,7.73937104,2508.8,2508.4,27.2078]
[1729712528800,0.39906,2508.5,2508.4,24.39906]
[1729712529198,4.77374231,2508.5,2508.4,24.39906]
[1729712529796,4.77374231,2508.5,2508.4,0.39906]
[1729712530008,4.77374231,2508.5,2508.1,3.2078]
[1729712530009,0.39911,2508.2,2508.1,3.2078]
[1729712530202,0.39911,2508.2,2508.1,3.60692]
[1729712530504,4.91759583,2508.2,2508.1,27.60692]
[1729712531001,8.90479583,2508.2,2508.1,3.60692]
[1729712531201,4.51848583,2508.2,2508.1,3.60692]
[1729712531598,4.51848583,2508.2,2508.1,27.60692]
[1729712531898,0.6037,2508.3,2508.2,0.39911]
[1729712532107,0.6136,2508.4,2508.3,0.39909]
[1729712533206,0.6037,2508.6,2508.5,0.39906]
[1729712533394,0.6037,2508.6,2508.5,3.60686]
[1729712533395,0.6152,2508.6,2508.5,3.60686]
[1729712533596,0.6152,2508.6,2508.5,7.59326]
[1729712533798,4.93658644,2508.6,2508.5,0.39906]
[1729712534096,5.33562644,2508.6,2508.5,0.39906]
[1729712534497,4.93658644,2508.6,2508.5,0.39906]
[1729712534695,12.04298644,2508.6,2508.2,3.2078]
[1729712534895,3.7475,2508.5,2508.2,3.2078]
[1729712535103,0.39909,2508.4,2508.3,0.39908]
[1729712535290,4.58818342,2508.4,2508.3,24.39908]
[1729712535494,4.58818342,2508.4,2508.3,24.0]
[1729712535800,4.58818342,2508.4,2508.3,0.39909]
[1729712537206,0.39909,2508.3,2508.2,27.60689]
[1729712537705,4.63391657,2508.3,2508.2,3.60689]
[1729712538406,4.23482657,2508.3,2508.2,3.60689]
[1729712538802,0.39909,2508.3,2508.2,3.60689]
[1729712539198,4.86425083,2508.3,2508.2,3.60689]
[1729712540002,11.57236083,2508.3,2507.9,3.2078]
[1729712540308,0.39914,2508.0,2507.9,3.2078]
[1729712540705,0.39919,2507.7,2507.6,3.60699]
[1729712541004,0.39916,2507.9,2507.8,0.39916]
[1729712541210,3.2078,2508.9,2507.7,7.1072]
[1729712541510,4.31112558,2508.4,2508.3,3.60689]
[1729712541905,4.94602558,2508.6,2508.3,3.60689]
[1729712541906,1.03396,2508.6,2508.3,3.2078]
[1729712542107,1.03395,2508.6,2508.5,0.39906]
[1729712542414,4.51349838,2508.4,2508.3,3.60689]
[1729712542612,5.54744838,2508.6,2508.5,0.39906]
[1729712542813,1.03395,2508.6,2508.5,0.39906]
[1729712543008,5.54744838,2508.6,2508.5,0.39906]
[1729712543213,5.14839838,2508.6,2508.5,0.39906]
[1729712543617,5.14839838,2508.6,2508.5,0.45368605]
[1729712543915,5.54743838,2508.6,2508.5,0.45368605]
[1729712544302,5.14839838,2508.6,2508.5,0.45368605]
[1729712544607,5.54743838,2508.6,2508.5,0.45368605]
[1729712545406,5.54743838,2508.6,2508.5,0.05462605]
[1729712545606,5.54743838,2508.6,2508.2,0.39909]
[1729712545607,9.13479838,2508.6,2508.2,0.39909]
[1729712545812,3.51907,2508.5,2508.4,0.39907]
[1729712546115,4.90041754,2508.5,2508.4,0.39907]
[1729712546315,0.39908,2508.4,2508.3,0.39908]
[1729712546614,5.19628497,2508.4,2508.3,0.39908]
[1729712546813,5.19628497,2508.4,2508.1,0.39911]
[1729712546814,0.39911,2508.2,2508.1,0.39911]
[1729712547022,5.19628497,2508.4,2508.3,0.39909]
[1729712547023,5.59537497,2508.4,2508.3,0.39909]
[1729712547217,5.19628497,2508.4,2508.3,0.39909]
[1729712548418,4.56388497,2508.4,2508.3,0.39909]
[1729712548812,4.4781,2508.6,2508.5,0.39906]
[1729712549215,5.04681403,2508.6,2508.5,0.39906]
[1729712550712,6.72681,2508.9,2508.5,7.59326]
[1729712550713,3.2078,2508.9,2508.5,7.59326]
[1729712550912,3.2078,2508.9,2508.8,0.39901]
[1729712551214,7.76846925,2508.9,2508.8,24.39901]
[1729712551416,4.56066925,2508.9,2508.8,27.60681]
[1729712551720,4.56066925,2508.9,2508.8,24.39901]
[1729712552418,1.05954,2509.3,2509.2,0.39895]
[1729712553417,0.6606,2509.3,2508.8,27.2078]
[1729712553618,3.51897,2509.1,2509.0,0.39898]
[1729712554017,7.91487157,2509.1,2509.0,0.39898]
[1729712554421,8.56367157,2509.1,2509.0,0.39898]
[1729712555215,0.39899,2509.0,2508.9,0.39899]
[1729712555417,8.16470157,2509.1,2508.8,24.0]
[1729712555715,0.39901,2508.8,2508.7,0.39902]
[1729712556117,4.77433479,2508.8,2508.7,0.39902]
[1729712556819,4.37532479,2508.8,2508.7,0.39902]
[1729712557417,4.37532479,2508.8,2508.6,24.0]
[1729712557418,0.676,2508.9,2508.8,0.39901]
[1729712557815,0.6488,2509.1,2508.8,0.39901]
[1729712558025,0.6488,2509.1,2509.0,0.39898]
[1729712558423,8.15788203,2509.1,2509.0,0.39898]
[1729712559126,5.03788203,2509.1,2509.0,0.39898]
[1729712560527,5.43684203,2509.1,2509.0,0.39898]
[1729712560719,5.03788203,2509.1,2509.0,0.39898]
[1729712561526,5.43684203,2509.1,2509.0,0.39898]
[1729712562025,5.03788203,2509.1,2509.0,0.39898]
[1729712563728,5.43684203,2509.1,2509.0,0.39898]
[1729712564930,5.03788203,2509.1,2509.0,0.39898]
[1729712565322,12.14348203,2509.1,2508.8,3.2078]
[1729712565523,3.12,2508.9,2508.3,1.02859824]
[1729712565729,6.3278,2508.7,2508.3,1.02859824]
[1729712565932,0.6942,2508.6,2508.5,0.39906]
[1729712566130,3.76583179,2508.6,2508.5,0.39906]
[1729712566332,3.12,2509.1,2508.5,3.9864]
[1729712566531,3.12,2509.1,2508.4,0.99769]
[1729712566532,3.12,2509.1,2509.0,0.39898]
[1729712566834,8.31120554,2509.1,2509.0,0.39898]
[1729712567236,5.19120554,2509.1,2509.0,0.39898]
[1729712568528,8.96550554,2509.1,2509.0,0.39898]
[1729712568833,9.36446554,2509.1,2509.0,0.39898]
[1729712569134,8.96550554,2509.1,2509.0,0.39898]
[1729712569532,9.36446554,2509.1,2509.0,0.39898]
[1729712570128,8.96550554,2509.1,2509.0,0.39898]
[1729712570532,9.36446554,2509.1,2509.0,0.39898]
[1729712570936,8.96550554,2509.1,2509.0,0.39898]
[1729712571231,5.84550554,2509.1,2509.0,0.39898]
[1729712571928,6.24446554,2509.1,2509.0,0.39898]
[1729712572437,5.84550554,2509.1,2509.0,0.39898]
[1729712572637,6.24446554,2509.1,2509.0,0.39898]
[1729712573138,5.84550554,2509.1,2509.0,0.39898]
[1729712574732,4.52090554,2509.1,2509.0,0.39898]
[1729712575052,3.2078,2509.2,2509.1,0.39896]
[1729712575249,3.2078,2509.2,2509.1,4.38456]
[1729712575550,3.2078,2509.2,2509.1,5.04836]
[1729712575751,3.2078,2509.2,2509.1,29.04836]
[1729712575950,0.4,2509.4,2509.1,29.04836]
[1729712575951,0.4,2509.4,2509.3,0.39893]
[1729712576152,0.4,2509.4,2509.3,7.59153]
[1729712578250,0.2,2510.0,2509.3,7.0278]
[1729712578446,0.00486381,2511.0,2509.9,6.3278]
[1729712578644,0.39868,2510.9,2510.6,0.39872]
[1729712578844,0.3987,2510.8,2510.7,0.39871]
[1729712579151,5.15158313,2510.8,2510.7,0.39871]
[1729712580339,5.15158313,2510.8,2510.4,1.604]
[1729712580546,4.47858313,2510.8,2510.4,1.604]
[1729712580753,0.673,2510.7,2510.6,0.39872]
[1729712581249,9.30875821,2510.7,2510.6,24.0]
[1729712581452,5.61514821,2510.7,2510.6,0.39872]
[1729712581746,6.01385821,2510.7,2510.5,3.60653]
[1729712581951,0.6809,2510.6,2510.5,27.60653]
[1729712582341,5.13494752,2510.6,2510.5,27.60653]
[1729712583051,5.13494752,2510.6,2509.8,3.2078]
[1729712583052,12.23814752,2510.6,2509.8,3.2078]
[1729712583258,3.12,2510.4,2509.8,4.8118]
[1729712583445,0.39879,2510.2,2509.8,4.8118]
[1729712583756,3.12,2510.4,2509.8,1.604]
[1729712583757,4.29382835,2510.1,2509.8,1.604]
[1729712584054,4.94622835,2510.3,2509.8,1.604]
[1729712584055,4.29382835,2510.2,2509.8,1.604]
[1729712584254,4.29382835,2510.2,2510.1,0.3988]
[1729712584552,0.6524,2510.3,2510.2,0.39879]
[1729712585049,0.6524,2510.3,2510.0,0.7168]
[1729712585247,4.59988376,2510.3,2510.2,0.39879]
[1729712585453,4.59988376,2510.3,2510.2,3.60659]
[1729712585647,4.59988376,2510.3,2510.2,7.59059]
[1729712585849,0.6809,2510.6,2510.5,0.39874]
[1729712586244,5.17558459,2510.6,2510.5,0.39874]
[1729712586445,5.17558459,2510.6,2510.0,2.60102]
[1729712586446,0.99687,2510.5,2510.0,0.39881]
[1729712586750,8.18909021,2510.4,2510.2,0.39878]
[1729712587055,4.98129021,2510.4,2510.2,0.39878]
[1729712587258,0.39877,2510.3,2510.0,0.39881]
[1729712587547,0.3988,2510.2,2510.1,0.3988]
[1729712587754,4.9003047,2510.2,2510.1,0.3988]
[1729712588055,0.3988,2510.2,2510.1,0.3988]
[1729712588249,4.9003047,2510.2,2510.1,0.3988]
[1729712588642,4.5015047,2510.2,2510.1,0.3988]
[1729712588844,4.9002947,2510.2,2510.1,0.3988]
[1729712589052,0.39879,2510.2,2510.1,0.3988]
[1729712589252,4.83213863,2510.2,2510.1,0.3988]
[1729712589752,4.43334863,2510.2,2510.1,0.3988]
[1729712590152,4.43334863,2510.2,2509.9,3.2078]
[1729712590153,0.3988,2510.1,2510.0,0.39881]
[1729712590348,4.43779615,2510.4,2509.9,3.2078]
[1729712590349,4.43779615,2510.4,2509.9,27.2078]
[1729712590549,4.98903325,2510.1,2510.0,0.39882]
[1729712590755,0.39882,2510.1,2510.0,0.39882]
[1729712590956,0.39878,2510.3,2510.2,0.39879]
[1729712591152,3.7928,2510.5,2510.0,0.39882]
[1729712591153,4.59021325,2510.1,2510.0,0.39882]
[1729712591353,4.59021325,2510.3,2510.2,0.39879]
[1729712591653,0.6728,2510.5,2510.4,0.39876]
[1729712591952,5.10111571,2510.5,2510.4,0.39876]
[1729712592458,5.49985571,2510.5,2510.4,0.39876]
[1729712592659,0.39876,2510.4,2510.3,0.39877]
[1729712592859,5.10111571,2510.5,2510.2,0.39878]
[1729712593155,4.40635322,2510.4,2509.9,27.2078]
[1729712593351,0.39878,2510.3,2510.2,0.39878]
[1729712593654,4.80511322,2510.4,2510.3,0.39877]
[1729712593841,4.80511322,2510.4,2510.2,0.39878]
[1729712594044,0.39877,2510.3,2510.2,0.39878]
[1729712594452,4.27053643,2510.3,2510.1,1.603]
[1729712594662,4.27053643,2510.3,2510.1,2.0018]
[1729712594663,1.09399,2510.2,2510.1,2.0018]
[1729712594857,0.6952,2510.2,2509.9,27.2078]
[1729712595054,1.77341,2510.1,2510.0,0.39882]
[1729712595455,6.04394643,2510.1,2510.0,0.39882]
[1729712595655,5.64513643,2510.1,2510.0,0.39882]
[1729712595850,0.39882,2510.0,2509.9,27.60663]
[1729712596055,0.39882,2510.0,2509.9,3.66122531]
[1729712596259,4.64390449,2510.0,2509.9,3.66122531]
[1729712596460,4.64390449,2510.0,2509.9,3.26239531]
[1729712596862,4.64390449,2510.0,2509.9,3.66123531]
[1729712597460,4.24508449,2510.0,2509.9,3.66123531]
[1729712598157,4.64390449,2510.0,2509.9,3.66123531]
[1729712598762,4.24508449,2510.0,2509.9,3.66123531]
[1729712600462,4.64390449,2510.0,2509.9,3.66123531]
[1729712600661,4.24508449,2510.0,2509.9,3.66123531]
[1729712600860,4.24508449,2510.0,2509.9,3.26239531]
[1729712601060,4.24508449,2510.0,2509.9,3.66123531]
[1729712601257,11.34908449,2510.0,2509.6,24.0]
[1729712601459,3.51887,2509.7,2509.6,24.0]
[1729712601659,0.39887,2509.7,2509.6,24.0]
[1729712601854,4.56053363,2509.7,2509.6,24.39888]
[1729712602059,4.87406363,2509.7,2509.6,24.39888]
[1729712602263,5.27293363,2509.7,2509.6,24.0]
[1729712602460,4.87406363,2509.7,2509.6,24.39888]
[1729712603757,4.16166363,2509.7,2509.6,24.39888]
[1729712604864,0.7056,2510.0,2509.9,0.39884]
[1729712605263,4.85344208,2510.0,2509.9,0.39884]
[1729712605473,0.39886,2509.8,2509.7,0.39886]
[1729712605664,0.39885,2509.9,2509.8,0.39885]
[1729712605962,4.9714957,2509.9,2509.8,0.39885]
[1729712606269,0.39886,2509.8,2509.7,0.39886]
[1729712606764,4.59688651,2509.8,2509.7,0.39886]
[1729712606969,0.39887,2509.7,2509.6,24.0]
[1729712607363,5.26279651,2509.7,2509.6,24.0]
[1729712608273,4.19802651,2509.7,2509.6,24.39888]
[1729712608971,4.41397799,2509.9,2509.8,0.39885]
[1729712609274,4.4915,2510.0,2509.9,0.39884]
[1729712609469,4.89032,2510.0,2509.9,0.39884]
[1729712609667,0.39884,2509.9,2509.8,0.39884]
[1729712610069,4.80741881,2509.9,2509.8,0.39884]
[1729712610773,4.80741881,2509.9,2509.6,24.0]
[1729712610774,8.39257881,2509.9,2509.6,24.0]
[1729712610967,3.51886,2509.8,2509.7,0.39885]
[1729712611271,8.11298761,2509.8,2509.7,0.39885]
[1729712611864,0.39887,2509.7,2509.6,24.0]
[1729712612268,10.84775619,2509.7,2508.3,1.02952829]
[1729712612466,10.84775619,2509.7,2508.4,0.39907]
[1729712612467,3.12,2508.5,2508.4,0.39907]
[1729712612664,0.39908,2508.4,2508.2,0.39909]
[1729712612859,8.36302921,2508.5,2508.2,0.3991]
[1729712613073,4.58272921,2508.3,2508.2,0.3991]
[1729712613369,3.12,2508.3,2508.1,24.0]
[1729712613560,7.1072,2508.3,2508.0,3.2078]
[1729712613771,0.39912,2508.1,2508.0,3.2078]
[1729712614067,4.34036691,2508.1,2508.0,27.2078]
[1729712614262,4.34036691,2508.1,2508.0,27.60694]
[1729712614469,1.05936,2508.5,2508.0,31.195]
[1729712614670,0.6603,2508.5,2508.3,0.39909]
[1729712614869,4.69948154,2508.4,2508.0,27.2078]
[1729712615167,4.30041154,2508.4,2508.0,27.2078]
[1729712615363,4.69949154,2508.4,2508.3,0.39909]
[1729712616165,4.30041154,2508.4,2508.0,27.2078]
[1729712616674,4.30041154,2508.4,2508.3,0.39909]
[1729712617778,3.60685,2508.6,2508.1,0.6954]
[1729712617973,3.2078,2508.6,2508.1,0.6954]
[1729712618178,4.20384698,2508.5,2508.4,0.39906]
[1729712618480,0.39907,2508.5,2508.3,0.39908]
[1729712618682,4.29455559,2508.5,2508.1,0.6954]
[1729712618980,4.69362559,2508.5,2508.4,0.39907]
[1729712619176,4.29455559,2508.5,2508.4,0.39907]
[1729712620080,4.69361559,2508.5,2508.4,0.39907]
[1729712621184,0.39908,2508.4,2508.3,0.39908]
[1729712621374,4.29455559,2508.5,2508.4,0.39907]
[1729712621375,4.69361559,2508.5,2508.4,0.39907]
[1729712621569,0.39906,2508.5,2508.4,0.39907]
[1729712621772,4.63208505,2508.5,2508.4,0.39907]
[1729712621972,0.39909,2508.3,2508.1,0.6954]
[1729712622281,0.39908,2508.4,2508.3,0.39909]
[1729712622585,4.24190657,2508.4,2508.3,0.39909]
[1729712622880,0.39907,2508.4,2508.3,0.39909]
[1729712623275,4.24190657,2508.4,2508.3,0.39909]
[1729712623784,4.81351372,2508.5,2508.4,0.39907]
[1729712623979,7.0378,2508.6,2508.5,0.39906]
[1729712624183,0.6513,2508.7,2508.6,0.39904]
[1729712624577,5.31970075,2508.7,2508.6,0.39904]
[1729712624979,0.39905,2508.6,2508.5,0.39905]
[1729712625175,4.22905,2508.6,2508.5,0.39905]
[1729712625379,8.09937075,2508.6,2508.5,0.39905]
[1729712625583,8.49841075,2508.6,2508.5,0.39905]
[1729712625885,0.39906,2508.5,2508.4,0.39906]
[1729712626075,0.39906,2508.5,2508.1,0.6954]
[1729712626276,0.39906,2508.5,2508.4,0.39907]
[1729712626977,8.09937075,2508.6,2508.5,0.39906]
[1729712626978,8.49843075,2508.6,2508.5,0.39906]
[1729712627384,4.26937075,2508.6,2508.5,4.38546]
[1729712627582,3.83,2509.2,2509.1,0.39896]
[1729712628079,8.19701465,2509.2,2509.1,24.39896]
[1729712628876,8.59596465,2509.2,2509.1,24.39896]
[1729712629079,8.19701465,2509.2,2509.1,24.39896]
[1729712629591,8.59596465,2509.2,2509.1,24.39896]
[1729712629778,8.19701465,2509.2,2509.1,24.39896]
[1729712630479,4.36701465,2509.2,2509.1,24.39896]
[1729712630682,3.2078,2509.9,2509.5,0.3989]
[1729712630683,7.0378,2509.9,2509.5,0.3989]
[1729712630881,7.0378,2509.9,2509.8,0.39885]
[1729712631086,3.2078,2509.9,2509.8,0.39885]
[1729712633086,3.2078,2510.2,2510.1,0.3988]
[1729712633484,7.69237574,2510.2,2510.1,0.3988]
[1729712636283,11.20116574,2510.2,2510.1,0.3988]
[1729712636489,10.80237574,2510.2,2510.1,0.3988]
[1729712637086,11.20116574,2510.2,2510.1,0.3988]
[1729712637386,11.20116574,2510.2,2509.6,0.6432]
[1729712637387,10.80237574,2510.2,2509.6,2.1902]
[1729712637582,3.11,2509.9,2509.6,2.1902]
[1729712637889,3.11,2509.9,2509.8,0.39885]
[1729712638387,4.15442,2510.1,2509.6,2.1902]
[1729712638585,3.2078,2510.2,2510.0,0.39882]
[1729712638887,3.2078,2510.2,2510.1,0.3988]
[1729712639192,7.65862103,2510.2,2510.1,0.3988]
[1729712641180,8.05741103,2510.2,2510.1,0.3988]
[1729712641385,7.65862103,2510.2,2510.1,0.3988]
[1729712641689,8.05741103,2510.2,2510.1,0.3988]
[1729712642088,7.65862103,2510.2,2510.1,0.3988]
[1729712642292,8.05741103,2510.2,2510.1,0.3988]
[1729712642590,7.65862103,2510.2,2510.1,0.3988]
[1729712643791,8.05741103,2510.2,2510.1,0.3988]
[1729712643996,7.65862103,2510.2,2510.1,0.3988]
[1729712644397,7.65862103,2510.2,2509.7,0.99718]
[1729712644791,7.65862103,2510.2,2509.9,0.39882]
[1729712644792,3.11,2510.0,2509.9,0.39882]
[1729712645293,7.62891311,2510.0,2509.9,0.39882]
[1729712646093,7.62891311,2510.0,2509.7,0.39886]
[1729712646094,0.39886,2509.8,2509.7,0.39886]
[1729712646295,0.39887,2509.7,2509.6,0.39887]
[1729712646590,8.03868365,2509.8,2509.7,0.39887]
[1729712646794,3.50886,2509.8,2509.7,0.39887]
[1729712646990,7.96048048,2509.8,2509.7,0.39887]
[1729712647391,7.96047048,2509.8,2509.7,0.39887]
[1729712647889,0.39888,2509.7,2509.6,0.39887]
[1729712648084,0.39888,2509.7,2509.4,3.2078]
[1729712648085,4.45162048,2509.8,2509.4,3.2078]
[1729712648285,0.6681,2509.9,2509.8,0.39885]
[1729712648690,5.14415797,2509.9,2509.8,0.39885]
[1729712649697,4.47605797,2509.9,2509.8,0.39885]
[1729712650096,4.54765708,2510.0,2509.8,1.39598]
[1729712650303,3.8264,2510.1,2509.8,0.99713]
[1729712650591,3.8264,2510.1,2510.0,0.39882]
[1729712650797,4.2252,2510.1,2510.0,0.39882]
[1729712650988,8.74318404,2510.1,2510.0,0.39882]
[1729712651189,8.34438404,2510.1,2510.0,0.39882]
[1729712651500,8.74318404,2510.1,2510.0,0.39882]
[1729712651892,8.34438404,2510.1,2510.0,0.39882]
[1729712652195,8.74318404,2510.1,2510.0,0.39882]
[1729712653095,12.32838404,2510.1,2509.4,5.71108]
[1729712653300,3.11,2509.8,2509.7,0.39887]
[1729712653698,4.1469076,2509.8,2509.7,0.39887]
[1729712655204,4.1469076,2509.8,2509.7,7.59147]
[1729712655499,4.6656,2510.2,2510.1,0.3988]
[1729712655500,3.2078,2510.2,2510.1,0.3988]
[1729712655688,3.11,2510.8,2510.4,0.39876]
[1729712655689,3.2078,2510.5,2510.4,0.39876]
[1729712655891,3.60654,2510.5,2510.4,0.39876]
[1729712656099,8.19087974,2510.5,2510.4,0.39876]
[1729712656296,7.79213974,2510.5,2510.4,0.39876]
[1729712656895,7.79213974,2510.5,2510.4,24.39876]
[1729712657093,8.19087974,2510.5,2510.4,24.39876]
[1729712657395,3.9311,2510.9,2510.4,31.0932]
[1729712657702,3.9311,2510.9,2510.8,0.39869]
[1729712658000,4.23094096,2510.8,2510.7,0.39871]
[1729712658201,4.23094096,2510.8,2510.7,4.38191]
[1729712658404,0.67576381,2511.0,2510.9,0.39868]
[1729712658705,4.88297773,2511.0,2510.9,0.39868]
[1729712660402,4.21207773,2511.0,2510.9,0.39868]
[1729712661005,4.21207773,2511.0,2510.9,4.38108]
[1729712661308,0.00486381,2511.0,2510.9,4.38108]
[1729712661693,0.00486381,2511.0,2510.9,5.88708]
[1729712662302,0.00486381,2511.0,2510.9,7.24098]
[1729712663404,0.00486381,2511.0,2510.9,6.57678]
[1729712665805,0.39855,2511.8,2511.1,0.99658]
[1729712666010,0.39855,2511.8,2511.0,1.39532]
[1729712666011,1.3685,2511.7,2511.6,0.39856]
[1729712666203,5.86870213,2511.7,2511.6,0.39856]
[1729712666397,1.76705,2511.7,2511.6,24.0]
[1729712666603,1.76706,2511.7,2511.5,0.39858]
[1729712666906,5.87297027,2511.7,2511.6,0.39857]
[1729712667107,4.50447027,2511.7,2511.6,0.39857]
[1729712667506,5.19617027,2512.0,2511.9,0.39852]
[1729712667910,4.6725,2512.0,2511.9,0.39852]
[1729712668406,4.31996036,2512.0,2511.9,7.58712]
[1729712668710,0.99578,2513.3,2511.9,7.58712]
[1729712668711,3.2078,2512.7,2512.6,0.39841]
[1729712669007,3.2078,2512.7,2512.3,4.615]
[1729712669008,8.09773545,2512.7,2512.3,4.615]
[1729712669213,4.49154545,2512.7,2512.6,0.39841]
[1729712669509,4.49154545,2512.7,2512.3,1.505]
[1729712669510,0.39841,2512.6,2512.4,3.60623]
[1729712669706,0.39841,2512.6,2512.4,0.39843]
[1729712669906,4.33275865,2512.5,2512.4,0.39843]